{"text_format":"1","workbook":"xlsx","n_sheets":2,"sheets":["INFORME","Farmacia Sede Ebais"],"not_rendered":{"charts":0,"images":1,"macros":1,"external_links":0,"defined_names":2,"comments":2,"pivot_tables":0},"unopened":[],"bounds":{"document_bytes":16777216,"sheet_cells":100000,"rows_first":2000,"rows_last":500,"rows_between":2000,"halvings":0,"cell_chars":16384,"cell_head_chars":4096},"cells_cut":0,"cells_raw":0,"read":"whole","date_system":"1900"}

{"sheet":"INFORME","index":0,"n_rows":40,"n_cols":9,"rows_kept":40,"cut":false,"hidden":false,"merged":[[0,1,0,9],[4,2,4,5],[3,1,3,2],[3,3,3,5],[2,1,2,9],[27,8,27,10],[17,8,17,10],[24,8,24,10],[25,8,25,10],[26,8,26,10],[19,8,19,10],[22,8,22,10],[23,8,23,10],[1,1,1,9],[5,7,5,10],[6,7,6,10],[7,7,7,10],[5,2,5,5],[8,5,8,7],[20,8,20,10],[18,8,18,10],[14,8,14,10],[13,8,13,10],[16,8,16,10],[15,8,15,10],[12,8,12,10],[38,3,38,8],[3,7,3,10],[4,7,4,10],[29,8,29,10],[32,4,32,5],[21,8,21,10],[10,8,10,10],[7,2,7,5],[6,2,6,5],[37,2,37,3],[36,3,36,8],[8,1,8,2],[28,8,28,10],[30,8,30,10],[11,8,11,10],[8,8,9,10]]}
[null,"DIRECCION DE REGULACIÓN DE PRODUCTOS DE INTERÉS SANITARIO"]
[null,"Control de Drogas Estupefacientes"]
[null,"Informe mensual de movimientos de Farmacia para la Caja Costarricense del Seguro Social"]
[null," Información correspondiente al mes de:",null,null,null,null,"Año:"]
[null,"Nombre de Farmacia:",null,null,null,null,"Código del Establecimiento:"]
[null,"Dirección Exacta:",null,null,null,null,"Provincia:"]
[null,"Teléfono:",null,null,null,null," Correo electrónico:"]
[null,"Regente Farmacéutico:",null,null,null,null,"Código de Colegiado:"]
[null,"DROGA ESTUPEFACIENTE",null,"1. INVENTARIO INICIAL","2. ENTRADAS","3. SALIDAS",null,null,"4. INVENTARIO FINAL (Saldo actual final del mes)"]
[null,"Código","Droga","Inventario Inicial (Saldo final del mes anterior)","Entradas","Unidades Despachadas","Recetas Despachadas","Otros egresos"]
[null,"111170006 / ES-001","Concerta 18 mg",null,null,null,null,null,{"$f":"D11+E11-(F11+H11)","v":0}]
[null,"ES-002","Concerta 27 mg",null,null,null,null,null,{"$f":"D12+E12-(F12+H12)","v":0}]
[null,"111170005 / ES-003","Concerta 36 mg",null,null,null,null,null,0]
[null,"ES-004","Concerta 54 mg",null,null,null,null,null,0]
[null,"111170002 / ES-005","Durogesic Fentanilo 25 mcg",null,null,null,null,null,0]
[null,"111170001 / ES-006","Durogesic Fentanilo 50 mcg",null,null,null,null,null,0]
[null,"111170004 / ES-011","Durogesic Fentanilo 75 mcg",null,null,null,null,null,0]
[null,"111170003 / ES-007","Durogesic Fentanilo 100 mcg",null,null,null,null,null,0]
[null,"110173860 / ES-026","Fentanilo ampollas 0.05mg/mL",null,null,null,null,null,0]
[null,"ES-015","Petidina 100 mg /2mL",null,null,null,null,null,0]
[null,"110171155 / ES-016","Metadona 5mg",null,null,null,null,null,0]
[null,"110174268 / ES-017","Metadona 10 mg/ 2mL",null,null,null,null,null,0]
[null,"110171160 / ES-030","Metilfenidato 10 mg ",null,null,null,null,null,0]
[null,"110171194 / ES-019","Morfina 20 mg ",null,null,null,null,null,0]
[null,"110171191 / ES-020","Morfina 30 mg ",null,null,null,null,null,0]
[null,"110174320 / ES-021","Morfina 15mg/ mL",null,null,null,null,null,0]
[null,"110177215 / ES-012","Oramorph Morfina Solución Oral 2 mg/mL",null,null,null,null,null,0]
[null,"ES-008","Oxicodona 10 mg",null,null,null,null,null,0]
[null,"ES-009","Oxicodona 20 mg",null,null,null,null,null,0]
[null,"ES-010","Oxicodona 40 mg",null,null,null,null,null,0]
[null,"111170007 / ES-018","Ritalina Metilfenidato Comprimidos 10 mg",null,null,null,null,null,0]
[]
[null,null,null,null,"Total de Recetas Despachadas",null,{"$f":"SUM(G11:G31)","v":0}]
[]
[]
[null,null,"FECHA"]
[]
[]
[null,null,null,"FIRMA DEL REGENTE RESPONSABLE"]
[null,"OBSERVACIONES:"]

{"sheet":"Farmacia Sede Ebais","index":1,"n_rows":40,"n_cols":9,"rows_kept":40,"cut":false,"hidden":false,"merged":[[0,1,0,9],[1,1,1,9],[2,1,2,9],[3,1,3,2],[3,3,3,5],[3,7,3,10],[10,8,10,10],[4,2,4,5],[4,7,4,10],[5,2,5,5],[5,7,5,10],[6,2,6,5],[6,7,6,10],[7,2,7,5],[7,7,7,10],[8,1,8,2],[8,5,8,7],[8,8,9,10],[22,8,22,10],[11,8,11,10],[12,8,12,10],[13,8,13,10],[14,8,14,10],[15,8,15,10],[16,8,16,10],[17,8,17,10],[18,8,18,10],[19,8,19,10],[20,8,20,10],[21,8,21,10],[38,3,38,8],[23,8,23,10],[24,8,24,10],[25,8,25,10],[26,8,26,10],[27,8,27,10],[28,8,28,10],[29,8,29,10],[30,8,30,10],[32,4,32,5],[36,3,36,8],[37,2,37,3]]}
[null,"DIRECCION DE REGULACIÓN DE PRODUCTOS DE INTERÉS SANITARIO"]
[null,"Control de Drogas Estupefacientes"]
[null,"Informe mensual de movimientos de Farmacia Sede Ebais para la Caja Costarricense del Seguro Social"]
[null," Información correspondiente al mes de:",null,null,null,null,"Año:"]
[null,"Nombre de Farmacia Sede Ebais (si aplica):",null,null,null,null,"Código del Establecimiento:"]
[null,"Dirección Exacta:",null,null,null,null,"Provincia:"]
[null,"Teléfono:",null,null,null,null," Correo electrónico:"]
[null,"Regente Farmacéutico:",null,null,null,null,"Código de Colegiado:"]
[null,"DROGA ESTUPEFACIENTE",null,"1. INVENTARIO INICIAL","2. ENTRADAS","3. SALIDAS",null,null,"4. INVENTARIO FINAL (Saldo actual final del mes)"]
[null,"Código","Droga","Inventario Inicial (Saldo final del mes anterior)","Entradas","Unidades Despachadas","Recetas Despachadas","Otros egresos"]
[null,"111170006 / ES-001","Concerta 18 mg",null,null,null,null,null,{"$f":"D11+E11-(F11+H11)","v":0}]
[null,"ES-002","Concerta 27 mg",null,null,null,null,null,{"$f":"D12+E12-(F12+H12)","v":0}]
[null,"111170005 / ES-003","Concerta 36 mg",null,null,null,null,null,0]
[null,"ES-004","Concerta 54 mg",null,null,null,null,null,0]
[null,"111170002 / ES-005","Durogesic Fentanilo 25 mcg",null,null,null,null,null,0]
[null,"111170001 / ES-006","Durogesic Fentanilo 50 mcg",null,null,null,null,null,0]
[null,"111170004 / ES-011","Durogesic Fentanilo 75 mcg",null,null,null,null,null,0]
[null,"111170003 / ES-007","Durogesic Fentanilo 100 mcg",null,null,null,null,null,0]
[null,"110173860 / ES-026","Fentanilo ampollas 0.05mg/mL",null,null,null,null,null,0]
[null,"ES-015","Petidina 100 mg /2mL",null,null,null,null,null,0]
[null,"110171155 / ES-016","Metadona 5mg",null,null,null,null,null,0]
[null,"110174268 / ES-017","Metadona 10 mg/ 2mL",null,null,null,null,null,0]
[null,"110171160 / ES-030","Metilfenidato 10 mg ",null,null,null,null,null,0]
[null,"110171194 / ES-019","Morfina 20 mg ",null,null,null,null,null,0]
[null,"110171191 / ES-020","Morfina 30 mg ",null,null,null,null,null,0]
[null,"110174320 / ES-021","Morfina 15mg/ mL",null,null,null,null,null,0]
[null,"110177215 / ES-012","Oramorph Morfina Solución Oral 2 mg/mL",null,null,null,null,null,0]
[null,"ES-008","Oxicodona 10 mg",null,null,null,null,null,0]
[null,"ES-009","Oxicodona 20 mg",null,null,null,null,null,0]
[null,"ES-010","Oxicodona 40 mg",null,null,null,null,null,0]
[null,"111170007 / ES-018","Ritalina Metilfenidato Comprimidos 10 mg",null,null,null,null,null,0]
[]
[null,null,null,null,"Total de Recetas Despachadas",null,{"$f":"SUM(G11:G31)","v":0}]
[]
[]
[null,null,"FECHA"]
[]
[]
[null,null,null,"FIRMA DEL REGENTE RESPONSABLE"]
[null,"OBSERVACIONES:"]